bitfinex/quotes_SOLUSD_20250930
["timestamp","ask_amount","ask_price","bid_price","bid_amount"]
[1759248681057,0.67,205.62,205.58,34.9]
[1759248681058,5.53334014,205.62,205.58,34.9]
[1759248681271,5.17020391,205.61,205.58,34.9]
[1759248681444,0.67,205.6,205.58,34.9]
[1759248681646,0.67,205.59,205.58,34.9]
[1759248681840,5.5340498,205.59,205.58,34.9]
[1759248683070,4.5340498,205.59,205.58,34.9]
[1759248683257,4.5340498,205.59,205.5,13.59559401]
[1759248683258,20.8,205.57,205.5,13.59559401]
[1759248683564,25.30020391,205.57,205.53,0.28432314]
[1759248683773,25.30020391,205.57,205.54,34.88]
[1759248683943,4.86475968,205.56,205.54,34.88]
[1759248685356,25.6645243,205.57,205.54,34.88]
[1759248685547,13.79559401,205.68,205.54,34.88]
[1759248685548,4.8633004,205.63,205.56,4.50020391]
[1759248685750,4.8633004,205.63,205.59,4.78452705]
[1759248685956,4.8633004,205.63,205.6,34.88]
[1759248685957,0.67,205.62,205.6,34.88]
[1759248686296,0.67,205.65,205.61,0.28432314]
[1759248686463,0.67,205.65,205.61,4.78452705]
[1759248686642,4.86215782,205.67,205.63,0.28432314]
[1759248686846,0.67,205.66,205.64,34.92]
[1759248687368,5.53262241,205.66,205.64,34.92]
[1759248687547,0.67,205.65,205.64,34.92]
[1759248688139,4.86262241,205.66,205.64,34.92]
[1759248688764,0.67,205.65,205.64,34.92]
[1759248689244,5.53263068,205.65,205.64,34.92]
[1759248691672,12.35487066,205.68,205.64,34.92]
[1759248691673,0.2,205.68,205.65,13.87991715]
[1759248691977,0.2,205.68,205.67,0.28432314]
[1759248692149,0.2,205.68,205.67,35.16432314]
[1759248692757,0.2,205.68,205.67,50.45641178]
[1759248692970,0.2,205.68,205.67,51.17641178]
[1759248693172,0.2,205.68,205.67,56.0385696]
[1759248693582,0.2,205.68,205.67,51.17641178]
[1759248694472,0.2,205.68,205.67,53.97730187]
[1759248694854,0.2,205.68,205.67,53.25730187]
[1759248697251,0.2,205.68,205.67,35.16432314]
[1759248697454,0.2,205.68,205.65,4.49738472]
[1759248697455,0.2,205.68,205.65,4.78170786]
[1759248697662,0.2,205.68,205.67,35.16432314]
[1759248698062,0.87,205.68,205.67,0.28432314]
[1759248698368,0.2,205.68,205.67,35.16432314]
[1759248700381,0.2,205.68,205.67,48.75991715]
[1759248700562,0.2,205.68,205.67,58.83945969]
[1759248702964,0.2,205.68,205.67,53.97730187]
[1759248703867,0.2,205.68,205.67,48.75991715]
[1759248705366,0.2,205.68,205.67,53.25730187]
[1759248707478,0.2,205.68,205.67,53.97730187]
[1759248708193,0.2,205.68,205.67,58.83945969]
[1759248712491,1e-08,205.68,205.67,58.83945969]
[1759248713892,1e-08,205.68,205.67,58.09945969]
[1759248714083,1e-08,205.68,205.67,53.31775183]
[1759248714295,1e-08,205.68,205.67,52.95297873]
[1759248714607,1e-08,205.68,205.67,48.73991715]
[1759248714812,0.71000001,205.68,205.67,52.95297873]
[1759248715484,0.71000001,205.68,205.67,34.86]
[1759248715887,0.71000001,205.68,205.63,18.09297873]
[1759248716093,0.71,205.67,205.65,13.59559401]
[1759248716336,1e-08,205.68,205.66,34.86]
[1759248716601,1e-08,205.68,205.67,0.28432314]
[1759248717404,0.71000001,205.68,205.66,34.86]
[1759248717603,0.71,205.67,205.66,34.86]
[1759248717785,0.71,205.67,205.66,35.14432314]
[1759248719114,1e-08,205.68,205.67,0.28432314]
[1759248719295,4.86192144,205.68,205.67,0.28432314]
[1759248719810,5.57192144,205.68,205.67,0.28432314]
[1759248720183,5.57192144,205.68,205.59,0.71]
[1759248720184,20.37785723,205.68,205.57,4.86450687]
[1759248720384,20.37785723,205.68,205.59,2.65113222]
[1759248720385,20.8,205.65,205.59,2.65113222]
[1759248720594,0.71,205.64,205.6,34.86]
[1759248720808,3.36113222,205.63,205.6,34.86]
[1759248721109,20.8,205.65,205.55,37.96]
[1759248721110,8.22447236,205.62,205.56,2.65113222]
[1759248721324,3.36113222,205.61,205.57,34.86]
[1759248721610,17.02169049,205.62,205.57,34.86]
[1759248721611,0.71,205.6,205.57,34.86]
[1759248721812,0.71,205.59,205.57,34.86]
[1759248721990,19.67282271,205.62,205.57,34.86]
[1759248721991,0.71,205.58,205.57,34.86]
[1759248722822,3.36113222,205.58,205.57,34.86]
[1759248723115,8.22541862,205.58,205.57,34.86]
[1759248723609,5.5742864,205.58,205.57,34.86]
[1759248724184,8.22541862,205.58,205.57,34.86]
[1759248725007,5.5742864,205.58,205.57,34.86]
[1759248725791,4.8642864,205.58,205.57,34.86]
[1759248725993,0.71,205.6,205.57,34.86]
[1759248726215,0.71,205.64,205.59,2.65113222]
[1759248726392,0.71,205.63,205.6,34.86]
[1759248726595,4.86215782,205.67,205.6,34.86]
[1759248726596,0.71,205.62,205.6,34.86]
[1759248727306,4.86298743,205.64,205.6,34.86]
[1759248727500,26.37298743,205.64,205.6,34.86]
[1759248727711,26.37298743,205.64,205.61,0.28432314]
[1759248728293,26.37260713,205.66,205.61,0.28432314]
[1759248728493,0.71,205.65,205.61,13.87991715]
[1759248728912,0.71,205.65,205.61,16.53104937]
[1759248729094,3.36113222,205.64,205.58,2.65113222]
[1759248729299,2.65113222,205.62,205.59,35.14432314]
[1759248729506,3.36113222,205.61,205.59,34.86]
[1759248729814,0.71,205.6,205.59,35.14432314]
[1759248731351,0.71,205.6,205.59,34.86]
[1759248732200,5.57381322,205.6,205.59,34.86]
[1759248732399,4.86358523,205.61,205.59,34.86]
[1759248732612,5.57358523,205.61,205.59,34.86]
[1759248733193,0.71,205.61,205.59,34.86]
[1759248733821,0.71,205.6,205.59,34.86]
[1759248734115,19.67282271,205.62,205.59,34.86]
[1759248734300,0.71,205.61,205.59,34.86]
[1759248735826,0.71,205.63,205.6,0.28432314]
[1759248737319,24.17113222,205.65,205.6,0.28432314]
[1759248737525,4.86286714,205.64,205.6,3.60545536]
[1759248738099,4.86266245,205.65,205.62,2.65113222]
[1759248738427,1e-08,205.68,205.65,0.28432314]
[1759248738720,1e-08,205.68,205.67,2.93545536]
[1759248738905,1e-08,205.68,205.67,0.28432314]
[1759248744203,1e-08,205.68,205.67,2.93545536]
[1759248745121,1e-08,205.68,205.67,0.28432314]
[1759248746034,1e-08,205.68,205.67,22.10320719]
[1759248746211,1e-08,205.68,205.67,17.24104937]
[1759248747015,1e-08,205.68,205.67,22.10320719]
[1759248747424,1e-08,205.68,205.67,13.87991715]
[1759248747625,1e-08,205.68,205.67,17.24104937]
[1759248747831,1e-08,205.68,205.67,13.87991715]
[1759248748131,1e-08,205.68,205.67,35.14432314]
[1759248748331,0.71000001,205.68,205.67,34.86]
[1759248749204,5.57192144,205.68,205.67,34.86]
[1759248750547,20.37785723,205.68,205.59,2.65113222]
[1759248750734,20.37785723,205.68,205.58,13.59559401]
[1759248750735,2.65113222,205.64,205.6,34.86]
[1759248751052,2.65113222,205.62,205.6,34.86]
[1759248751227,0.71,205.61,205.6,34.86]
[1759248752450,3.36113222,205.61,205.6,34.86]
[1759248753253,8.22470889,205.61,205.6,34.86]
[1759248753547,0.71,205.61,205.6,34.86]
[1759248753873,20.8,205.61,205.6,35.14432314]
[1759248754057,3.36113222,205.65,205.6,35.85432314]
[1759248754349,0.71,205.65,205.61,0.28432314]
[1759248754538,20.8,205.66,205.62,0.71]
[1759248754734,20.8,205.66,205.64,0.28432314]
[1759248755048,7.51331064,205.67,205.64,0.28432314]
[1759248755239,5.57263068,205.65,205.64,0.28432314]
[1759248755422,5.57263068,205.65,205.63,34.86]
[1759248755759,3.36113222,205.64,205.6,0.28432314]
[1759248755932,3.36113222,205.64,205.61,34.86]
[1759248756130,4.86263068,205.65,205.62,0.99432314]
[1759248756327,4.86263068,205.65,205.62,3.64545536]
[1759248756532,5.57263068,205.65,205.62,0.28432314]
[1759248757227,4.86263068,205.65,205.62,0.28432314]
[1759248757570,3.36113222,205.64,205.61,34.86]
[1759248757766,2.65113222,205.62,205.59,0.14216157]
[1759248757953,2.65113222,205.62,205.6,34.86]
[1759248758157,19.6703396,205.65,205.6,34.86]
[1759248758342,0.71,205.64,205.6,34.86]
[1759248758776,0.71,205.64,205.61,0.28432314]
[1759248759572,3.36113222,205.64,205.61,0.28432314]
[1759248760073,0.71,205.63,205.61,0.28432314]
[1759248760371,2.65113222,205.64,205.6,34.86]
[1759248760372,3.36113222,205.62,205.6,34.86]
[1759248760546,0.71,205.61,205.6,35.14432314]
[1759248760754,2.65113222,205.62,205.6,35.14432314]
[1759248760949,3.36113222,205.62,205.6,35.14432314]
[1759248761475,5.5735306,205.62,205.6,35.14432314]
[1759248761644,8.22466282,205.62,205.6,35.14432314]
[1759248762176,5.5735306,205.62,205.6,35.14432314]
[1759248762586,4.86311386,205.63,205.6,35.14432314]
[1759248762864,4.86285449,205.65,205.61,3.64545536]
[1759248763265,4.86215782,205.67,205.63,0.28432314]
[1759248763457,4.86215782,205.67,205.64,35.14432314]
[1759248765076,5.57215782,205.67,205.64,35.14432314]
[1759248766160,4.86215782,205.67,205.64,35.14432314]
[1759248766474,21.51,205.66,205.64,35.14432314]
[1759248766972,20.8,205.66,205.64,35.14432314]
[1759248767569,25.66253055,205.66,205.64,35.14432314]
[1759248768654,0.71,205.65,205.64,34.86]
[1759248769051,3.36113222,205.65,205.64,34.86]
[1759248769672,29.0237629,205.65,205.64,34.86]
[1759248769971,26.37263068,205.65,205.64,34.86]
[1759248770577,41.1803396,205.65,205.64,34.84]
[1759248771774,25.66263068,205.65,205.64,34.84]
[1759248771958,29.0237629,205.65,205.64,34.84]
[1759248774389,28.3137629,205.65,205.64,34.84]
[1759248774697,29.0137629,205.65,205.64,34.84]
[1759248775187,25.66263068,205.65,205.64,34.84]
[1759248776488,20.8,205.65,205.64,34.84]
[1759248776688,4.8624427,205.66,205.64,34.84]
[1759248779393,2.39737333,205.65,205.64,34.84]
[1759248779954,0.7,205.65,205.64,34.84]
[1759248780168,2.39737333,205.65,205.64,34.84]
[1759248781590,20.8,205.63,205.61,34.84]
[1759248781778,2.39737333,205.62,205.6,34.84]
[1759248781978,23.19737333,205.62,205.6,34.84]
[1759248782198,2.39737333,205.62,205.6,34.84]
[1759248782871,25.66357667,205.61,205.6,34.84]
[1759248784495,40.21989168,205.61,205.53,1.69737333]
[1759248784792,6.56260637,205.54,205.5,13.59559401]
[1759248784975,6.56260637,205.54,205.51,34.84]
[1759248785993,4.8657065,205.52,205.51,34.84]
[1759248786193,6.56307983,205.52,205.51,34.84]
[1759248788297,7.26307983,205.52,205.51,34.84]
[1759248788601,19.42734608,205.52,205.48,34.84]
[1759248788787,22.49737333,205.49,205.48,34.84]
[1759248789302,27.36379018,205.49,205.48,34.84]
[1759248789881,28.06379018,205.49,205.48,34.84]
[1759248790278,40.22983232,205.49,205.45,0.1]
[1759248790498,1.69737333,205.46,205.45,0.1]
[1759248790688,22.49737333,205.46,205.45,1e-08]
[1759248791001,23.19737333,205.46,205.45,1e-08]
[1759248791442,28.06450075,205.46,205.45,1e-08]
[1759248792587,1.69737333,205.46,205.45,1e-08]
[1759248792987,1.69737333,205.47,205.45,1e-08]
[1759248793416,6.56450075,205.46,205.45,1e-08]
[1759248794612,7.26450075,205.46,205.45,1e-08]
[1759248795217,6.56450075,205.46,205.45,1e-08]
[1759248795414,4.86712742,205.46,205.45,1e-08]
[1759248795602,4.86689031,205.48,205.45,1e-08]
[1759248795920,6.56426364,205.48,205.45,1e-08]
[1759248796128,20.8,205.46,205.45,1e-08]
[1759248797904,4.86689031,205.48,205.45,1e-08]
[1759248798305,20.8,205.46,205.45,0.71000001]
[1759248798619,4.86689031,205.48,205.45,0.71000001]
[1759248798820,20.8,205.46,205.45,0.71000001]
[1759248799798,7.28450075,205.46,205.45,1e-08]
[1759248803426,28.08450075,205.46,205.45,1e-08]
[1759248804326,7.28450075,205.46,205.45,1e-08]
[1759248805601,28.08450075,205.46,205.45,1e-08]
[1759248805921,7.28450075,205.46,205.45,1e-08]
[1759248807824,5.58712742,205.46,205.45,1e-08]
[1759248808016,7.28450075,205.46,205.45,1e-08]
[1759248809807,28.08450075,205.46,205.45,1e-08]
[1759248810011,7.28450075,205.46,205.45,1e-08]
[1759248811222,20.8,205.43,205.4,0.1]
[1759248811425,1.69737333,205.41,205.4,0.1]
[1759248812623,6.56544849,205.42,205.4,0.1]
[1759248813130,1.69737333,205.41,205.4,0.1]
[1759248813309,4.86831215,205.41,205.4,0.1]
[1759248813510,6.56568548,205.41,205.4,0.1]
[1759248815014,20.8,205.41,205.4,0.8]
[1759248816216,28.03568548,205.41,205.4,0.1]
[1759248816421,7.23568548,205.41,205.4,0.1]
[1759248817319,6.56568548,205.41,205.4,0.1]
[1759248817519,7.23568548,205.41,205.4,0.1]
[1759248819139,5.53831215,205.41,205.4,0.1]
[1759248819321,7.23568548,205.41,205.4,0.1]
[1759248819642,5.53831215,205.41,205.4,0.1]
[1759248819846,7.23568548,205.41,205.4,0.1]
[1759248820519,6.56568548,205.41,205.4,0.1]
[1759248821243,6.56568548,205.41,205.4,0.8]
[1759248821472,4.86831215,205.41,205.4,0.8]
[1759248821644,6.56568548,205.41,205.4,0.1]
[1759248823428,27.36568548,205.41,205.4,0.1]
[1759248825564,25.66831215,205.41,205.4,0.8]
[1759248825966,20.8,205.41,205.4,0.8]
[1759248826270,25.66831215,205.41,205.4,0.1]
[1759248826457,27.36568548,205.41,205.4,0.1]
[1759248826651,28.03568548,205.41,205.4,0.1]
[1759248828277,19.40646587,205.41,205.37,0.1]
[1759248828471,1.69737333,205.38,205.37,0.1]
[1759248828844,2.36737333,205.38,205.37,0.1]
[1759248829353,2.36737333,205.38,205.37,1e-08]
[1759248830151,7.2363966,205.38,205.37,1e-08]
[1759248830881,6.5663966,205.38,205.37,1e-08]
[1759248831057,7.2363966,205.38,205.37,1e-08]
[1759248834670,6.5663966,205.38,205.37,1e-08]
[1759248835766,4.86902327,205.38,205.37,1e-08]
[1759248835963,4.86902327,205.38,205.37,0.70000001]
[1759248836358,4.86878621,205.39,205.37,1e-08]
[1759248836563,6.56615954,205.39,205.37,1e-08]
[1759248837078,20.8,205.38,205.37,0.70000001]
[1759248837463,20.8,205.38,205.37,1e-08]
[1759248837660,6.56615954,205.39,205.37,1e-08]
[1759248837869,4.86878621,205.39,205.37,0.70000001]
[1759248838068,4.86878621,205.39,205.38,0.7]
[1759248838372,17.03909254,205.41,205.38,0.7]
[1759248839081,2.65863372,205.4,205.37,1e-08]
[1759248839569,2.65863372,205.4,205.37,0.70000001]
[1759248839982,4.86878621,205.39,205.37,1e-08]
[1759248840172,4.86878621,205.39,205.38,0.7]
[1759248840352,4.86878621,205.39,205.37,1e-08]
[1759248840553,0.66,205.43,205.38,0.7]
[1759248840754,7.52647191,205.43,205.39,0.7]
[1759248840978,4.86783819,205.43,205.4,0.7]
[1759248841286,20.8,205.41,205.38,2.65863372]
[1759248841488,20.8,205.41,205.37,0.28432315]
[1759248841659,20.8,205.41,205.38,0.7]
[1759248841858,20.8,205.41,205.39,0.7]
[1759248842074,4.86854917,205.4,205.37,0.98432315]
[1759248842293,4.86854917,205.4,205.38,0.7]
[1759248842666,4.86854917,205.4,205.37,1e-08]
[1759248842872,8.18718289,205.4,205.37,1e-08]
[1759248843064,2.65863372,205.39,205.37,1e-08]
[1759248843258,23.45863372,205.38,205.37,1e-08]
[1759248843658,20.8,205.37,205.35,0.1]
[1759248844015,17.04407108,205.35,205.26,30.88]
[1759248844281,2.65863372,205.31,205.26,30.88]
[1759248844585,2.65863372,205.31,205.27,0.7]
[1759248844969,4.8709206,205.3,205.27,0.7]
[1759248845279,7.52927382,205.32,205.28,0.7]
[1759248845458,7.52927382,205.32,205.29,0.7]
[1759248845780,7.52886241,205.33,205.3,0.7]
[1759248845960,7.52886241,205.33,205.28,0.14216157]
[1759248846276,7.52886241,205.33,205.28,0.84216157]
[1759248848390,2.65863372,205.32,205.28,0.14216157]
[1759248848682,3.31863372,205.32,205.28,0.14216157]
[1759248849257,2.65863372,205.32,205.28,0.14216157]
[1759248849481,2.65863372,205.32,205.28,0.84216157]
[1759248849689,2.65863372,205.32,205.28,0.14216157]
[1759248849690,0.66,205.31,205.28,0.14216157]
[1759248849858,2.65863372,205.32,205.28,0.14216157]
[1759248850366,7.5293078,205.32,205.28,0.14216157]
[1759248851180,23.45863372,205.33,205.29,0.84216157]
[1759248851363,28.32886993,205.33,205.29,0.84216157]
[1759248852089,28.32886993,205.33,205.29,0.14216157]
[1759248852293,28.98886993,205.33,205.29,0.14216157]
[1759248853273,28.98886993,205.33,205.28,0.28432314]
[1759248853470,4.87023621,205.33,205.28,13.87991715]
[1759248853779,12.17364524,205.37,205.28,13.87991715]
[1759248853780,4.86967608,205.36,205.3,2.65863372]
[1759248853963,4.86902327,205.38,205.32,13.87991715]
[1759248854169,4.86902327,205.38,205.33,0.7]
[1759248854473,8.18765699,205.38,205.33,0.7]
[1759248854665,8.18765699,205.38,205.32,35.12432314]
[1759248855281,5.52902327,205.38,205.32,42.65339726]
[1759248855476,5.52902327,205.38,205.32,37.78295686]
[1759248855661,3.31863372,205.37,205.32,35.12432314]
[1759248855858,2.65863372,205.34,205.32,34.84]
[1759248856272,17.70158145,205.38,205.32,34.84]
[1759248856479,17.70158145,205.38,205.33,0.98432314]
[1759248859374,4.86949746,205.36,205.33,0.28432314]
[1759248859766,4.86949746,205.36,205.32,34.84]
[1759248859767,0.66,205.35,205.32,34.84]
[1759248859972,3.31863372,205.34,205.32,34.84]
[1759248860903,17.04324112,205.36,205.32,34.84]
[1759248861093,3.31863372,205.35,205.32,34.84]
[1759248861470,2.65863372,205.38,205.33,0.93432314]
[1759248861667,4.86902327,205.38,205.34,34.84]
[1759248862093,0.66,205.4,205.35,3.59295686]
[1759248862599,4.86831215,205.41,205.37,0.28432314]
[1759248862772,5.52831215,205.41,205.37,0.28432314]
[1759248863194,4.86831215,205.41,205.37,0.28432314]
[1759248863511,4.86806223,205.43,205.39,0.28432314]
[1759248863712,5.53763599,205.44,205.4,34.82]
[1759248864010,4.86763599,205.44,205.41,0.28432314]
[1759248864975,3.26562112,205.48,205.41,2.94295686]
[1759248865174,2.65863372,205.47,205.41,2.94295686]
[1759248865405,3.32863372,205.47,205.41,2.94295686]
[1759248865606,25.66717846,205.46,205.41,2.94295686]
[1759248865905,26.33717846,205.46,205.41,7.81124854]
[1759248866108,20.8,205.46,205.42,0.69]
[1759248866787,26.33713239,205.46,205.41,2.94295686]
[1759248866994,26.33713239,205.46,205.41,3.63295686]
[1759248867305,0.67,205.5,205.44,2.94295686]
[1759248867512,5.53637823,205.5,205.46,0.28432314]
[1759248868004,0.67,205.5,205.46,0.28432314]
[1759248868311,8.19457317,205.52,205.46,0.97432314]
[1759248868515,28.99457317,205.52,205.46,2.94295686]
[1759248868682,25.66593945,205.52,205.48,0.28432314]
[1759248869019,5.53593945,205.52,205.48,0.28432314]
[1759248869195,4.86549404,205.53,205.48,2.94295686]
[1759248869398,0.67,205.52,205.48,2.94295686]
[1759248869598,5.53574006,205.52,205.48,2.94295686]
[1759248869911,26.33574006,205.52,205.48,2.94295686]
[1759248870202,26.33574006,205.52,205.48,0.28432314]
[1759248870408,0.67,205.51,205.48,0.28432314]
[1759248870603,2.65863372,205.49,205.48,0.28432314]
[1759248870800,3.32863372,205.49,205.47,0.28432314]
[1759248870997,3.32863372,205.49,205.46,13.59559401]
[1759248870998,2.65863372,205.48,205.43,13.59559401]
[1759248871200,3.32863372,205.47,205.44,34.82]
[1759248871501,0.67,205.46,205.44,34.82]
[1759248871694,4.86731367,205.46,205.45,0.28432314]
[1759248872414,5.53731367,205.46,205.45,0.28432314]
[1759248873513,8.19594739,205.46,205.45,0.28432314]
[1759248873911,5.53731367,205.46,205.45,0.28432314]
[1759248875713,0.67,205.46,205.45,0.28432314]
[1759248875914,4.86691983,205.47,205.45,0.28432314]
[1759248876506,5.53691983,205.47,205.45,0.28432314]
[1759248876916,2.65863372,205.46,205.36,13.59559401]
[1759248877102,2.65863372,205.42,205.38,13.59559401]
[1759248877300,2.65863372,205.44,205.4,13.59559401]
[1759248877503,0.67,205.46,205.43,0.28432314]
[1759248878003,2.65863372,205.46,205.43,0.28432314]
[1759248878220,0.67,205.45,205.43,0.28432314]
[1759248878417,4.86760124,205.44,205.43,0.28432314]
[1759248878811,3.32863372,205.45,205.43,0.28432314]
[1759248879015,8.19600239,205.45,205.43,0.28432314]
[1759248880725,5.53736867,205.45,205.43,0.28432314]
[1759248880922,4.86736867,205.45,205.43,0.28432314]
[1759248881103,20.8,205.44,205.43,0.28432314]
[1759248882002,0.67,205.53,205.45,0.28432314]
[1759248882323,0.2,205.56,205.53,0.28432314]
[1759248882324,5.06494068,205.56,205.53,0.28432314]
[1759248882493,5.06494068,205.56,205.54,34.8]
[1759248882697,0.2,205.56,205.54,34.8]
[1759248883504,5.73485114,205.56,205.54,34.8]
[1759248884429,0.2,205.56,205.54,34.8]
[1759248886224,5.06477441,205.56,205.54,34.8]
[1759248886721,0.67,205.55,205.54,34.8]
[1759248887021,3.32863372,205.55,205.54,34.8]
[1759248887228,0.67,205.55,205.54,34.8]
[1759248887593,7.72340813,205.56,205.54,34.8]
[1759248887801,5.06477441,205.56,205.54,34.8]
[1759248888123,8.39340813,205.56,205.54,34.8]
[1759248889518,5.73477441,205.56,205.54,34.8]
[1759248889724,5.06477441,205.56,205.55,0.28432314]
[1759248890600,8.39340813,205.56,205.54,34.8]
[1759248890809,0.67,205.55,205.54,34.8]
[1759248891530,7.72340813,205.56,205.54,34.8]
[1759248891724,5.73477441,205.56,205.54,34.8]
[1759248892021,8.39340813,205.56,205.54,34.8]
[1759248892528,5.73477441,205.56,205.54,34.8]
[1759248892817,5.06477441,205.56,205.54,34.8]
[1759248893830,21.0,205.56,205.54,34.8]
[1759248894010,0.2,205.56,205.54,34.8]
[1759248895129,21.0,205.56,205.54,34.8]
[1759248895323,25.86477782,205.56,205.54,34.8]
[1759248898433,21.0,205.56,205.54,34.8]
[1759248898637,0.2,205.56,205.55,14.56991715]
[1759248898943,0.2,205.56,205.55,17.22855087]
[1759248900115,0.2,205.56,205.55,14.56991715]
[1759248900640,0.2,205.56,205.55,21.13340339]
[1759248901831,0.2,205.56,205.55,16.26840704]
[1759248902137,0.2,205.56,205.55,21.13340339]
[1759248902639,0.2,205.56,205.55,19.4349135]
[1759248902808,0.2,205.56,205.55,1.98281303]
[1759248903013,0.2,205.56,205.55,13.59559401]
[1759248903220,0.2,205.56,205.55,48.35559401]
[1759248903420,5.73475968,205.56,205.55,34.76]
[1759248903930,0.2,205.56,205.55,34.76]
[1759248904239,0.2,205.56,205.55,48.35559401]
[1759248904428,0.2,205.56,205.55,49.04559401]
[1759248904637,0.2,205.56,205.55,51.02840704]
[1759248904937,0.2,205.56,205.55,49.32991715]
[1759248906038,0.2,205.56,205.55,55.89340339]
[1759248906838,5.73475968,205.56,205.55,0.28432314]
[1759248907017,0.2,205.56,205.55,34.76]
[1759248907912,0.2,205.56,205.55,35.04432314]
[1759248908316,7.43324957,205.56,205.48,13.59559401]
[1759248908539,1.69848989,205.54,205.49,34.76]
[1759248908838,5.73475968,205.56,205.51,0.14216157]
[1759248909021,0.67,205.55,205.54,0.14216157]
[1759248909343,0.67,205.55,205.54,35.04432314]
[1759248909663,7.23348624,205.55,205.54,34.76]
[1759248911336,5.53499635,205.55,205.54,34.76]
[1759248911523,7.23348624,205.55,205.54,34.76]
[1759248912823,0.2,205.56,205.54,34.76]
[1759248913143,5.73481383,205.56,205.54,34.76]
[1759248913337,26.53481383,205.56,205.54,34.76]
[1759248914350,0.2,205.56,205.55,16.26840704]
[1759248915311,0.2,205.56,205.55,21.13340339]
[1759248915524,0.2,205.56,205.55,16.26840704]
[1759248915955,0.2,205.56,205.55,19.4349135]
[1759248916119,0.2,205.56,205.55,21.13340339]
[1759248917343,0.87,205.67,205.55,21.13340339]
[1759248917344,5.06244894,205.66,205.63,1.69848989]
[1759248917531,5.72244894,205.66,205.64,34.76]
[1759248918043,0.86,205.66,205.65,0.28432314]
[1759248918241,0.2,205.66,205.65,0.28432314]
[1759248919535,5.72239424,205.66,205.65,0.28432314]
[1759248920438,0.2,205.66,205.65,0.28432314]
[1759248920954,1e-08,205.68,205.65,21.16103772]
[1759248921166,0.2,205.75,205.68,13.87991715]
[1759248921321,0.2,205.75,205.74,20.15458744]
[1759248921526,0.2,205.75,205.74,55.17891058]
[1759248921719,0.2,205.75,205.74,48.61991715]
[1759248921950,0.2,205.75,205.74,50.31840704]
[1759248922738,0.2,205.75,205.74,15.57840704]
[1759248922937,0.2,205.75,205.74,50.31840704]
[1759248925165,0.2,205.75,205.74,13.87991715]
[1759248925346,0.2,205.75,205.74,50.31840704]
[1759248926531,0.2,205.75,205.74,50.31840704]
[1759248927153,0.2,205.75,205.74,48.61991715]
[1759248927451,0.2,205.75,205.74,50.31840704]
[1759248927834,0.92,205.75,205.74,48.61991715]
[1759248928052,0.2,205.75,205.74,48.61991715]
[1759248928558,0.2,205.75,205.74,50.31840704]
[1759248928930,5.78026731,205.75,205.74,34.88216157]
[1759248929164,5.78026731,205.75,205.74,34.74]
[1759248929458,0.2,205.75,205.74,35.02432314]
[1759248929637,0.2,205.75,205.74,0.14216157]
[1759248929840,5.78026731,205.75,205.74,34.86216157]
[1759248930047,0.92,205.75,205.74,35.00432314]
[1759248930558,5.78026731,205.75,205.74,35.00432314]
[1759248930762,0.2,205.75,205.74,50.29840704]
[1759248931848,5.78026731,205.75,205.74,48.59991715]
[1759248932047,5.78026731,205.75,205.74,35.00432314]
[1759248932245,0.2,205.75,205.74,35.00432314]
[1759248932562,0.2,205.75,205.74,50.29840704]
[1759248933659,0.2,205.75,205.74,15.57840704]
[1759248933857,0.2,205.75,205.74,50.29840704]
[1759248934078,5.06026731,205.75,205.74,48.59991715]
[1759248934560,0.2,205.75,205.74,48.59991715]
[1759248934768,5.78026731,205.75,205.74,48.59991715]
[1759248934940,5.78026731,205.75,205.74,35.00432314]
[1759248935146,5.78026731,205.75,205.74,0.28432314]
[1759248935360,5.78026731,205.75,205.74,35.00432314]
[1759248935568,19.62942548,205.75,205.68,1.69848989]
[1759248935768,2.41848989,205.74,205.69,48.31559401]
[1759248935946,0.72,205.73,205.7,0.28432314]